fUSD/lending_fUSD_20250905
["ID","MTS","AMOUNT","RATE_DAILY","PERIOD"]
[383617343,1757043034464,-160.0,0.00024174,14]
[383617344,1757043034474,-160.0,0.00024174,14]
[383617345,1757043034483,-160.0,0.00024174,14]
[383617346,1757043034494,-160.0,0.00024174,14]
[383617347,1757043034504,-278.780401,0.00024174,14]
[383617348,1757043034515,-150.0,0.00024174,14]
[383617349,1757043034525,-150.0,0.00024174,14]
[383617350,1757043034535,-150.0,0.00024174,2]
[383617351,1757043034547,-150.0,0.00024174,2]
[383617352,1757043034557,-150.0,0.00024174,2]
[383617353,1757043034566,-500.0,0.00024174,14]
[383617354,1757043034576,-150.0,0.00024174,14]
[383617355,1757043034586,-500.0,0.00024174,14]
[383617356,1757043034595,-150.0,0.00024174,14]
[383617357,1757043034605,-150.0,0.00024174,2]
[383617358,1757043034615,-500.0,0.00024174,14]
[383617359,1757043034624,-500.0,0.00024174,14]
[383617360,1757043034634,-150.0,0.00024174,2]
[383617361,1757043034643,-490.0,0.00024174,14]
[383617362,1757043034653,-500.0,0.00024174,14]
[383617363,1757043034663,-151.0,0.00024174,7]
[383617364,1757043034673,-194.198796,0.00024174,7]
[383617365,1757043034682,-1416.16,0.00024174,2]
[383617366,1757043034692,-9999.99,0.00024174,2]
[383617367,1757043034702,-9999.99,0.00024174,2]
[383617368,1757043034712,-11565.75,0.00024174,2]
[383617369,1757043034722,-999.99,0.00024174,2]
[383617370,1757043034731,-1684.16,0.00024174,2]
[383617371,1757043034741,-150.99,0.00024174,2]
[383617372,1757043034750,-1449.31,0.00024174,2]
[383617373,1757043034761,-168.0,0.00024253,2]
[383617374,1757043034770,-420.0,0.00024322,2]
[383617375,1757043034780,-735.8706734,0.00024398,2]
[383617376,1757043034790,-628.0,0.00024435,2]
[383617377,1757043034800,-160.0,0.00024438,3]
[383617378,1757043034810,-150.0,0.00024448,14]
[383617379,1757043034819,-150.0,0.00024448,14]
[383617380,1757043034829,-150.0,0.00024448,14]
[383617381,1757043034839,-150.0,0.00024448,14]
[383617382,1757043034848,-270.76542837,0.00024448,14]
[383617383,1757043034858,-204.84193638,0.00024448,14]
[383617384,1757043034867,-500.0,0.00024448,14]
[383617385,1757043034876,-151.97968527,0.00024448,2]
[383617386,1757043034886,-500.0,0.00024448,14]
[383617387,1757043034895,-500.0,0.00024448,14]
[383617388,1757043034905,-150.0,0.00024448,14]
[383617389,1757043034915,-150.0,0.00024448,14]
[383617390,1757043034924,-500.0,0.00024448,14]
[383617391,1757043034934,-150.0,0.00024448,14]
[383617392,1757043034943,-158.61777102,0.00024448,14]
[383617393,1757043034953,-150.0,0.00024448,14]
[383617394,1757043034963,-500.0,0.00024448,14]
[383617395,1757043034972,-150.0,0.00024448,14]
[383617396,1757043034982,-150.46105818,0.00024448,14]
[383617397,1757043034992,-500.0,0.00024448,14]
[383617398,1757043035002,-500.0,0.00024448,14]
[383617399,1757043035011,-500.0,0.00024448,14]
[383617400,1757043035022,-150.0,0.00024448,2]
[383617401,1757043035031,-490.0,0.00024448,14]
[383617402,1757043035041,-500.0,0.00024448,14]
[383617403,1757043035051,-17110.0,0.00024463,7]
[383617404,1757043035061,-212.63008182,0.00024463,7]
[383617405,1757043035071,-514.736181,0.00024463,7]
[383617406,1757043035080,-168.0,0.0002447,2]
[383617407,1757043035090,-168.0,0.00024477,2]
[383617408,1757043035100,-1000.0,0.00024498,2]
[383617409,1757043035109,-1003.61001051,0.00024498,2]
[383617410,1757043035121,-1003.88845851,0.00024498,2]
[383617411,1757043035132,-1508.15294773,0.00024544,2]
[383617412,1757043035142,-168.0,0.00024571,2]
[383617413,1757043035153,-168.0,0.00024609,2]
[383617414,1757043035163,-1000.0,0.00024623,2]
[383617415,1757043035173,-267.01,0.00024647,2]
[383617416,1757043035183,-151.0,0.00024654,7]
[383617417,1757043035192,-400.0,0.00024657,2]
[383617418,1757043035202,-400.0,0.00024657,2]
[383617419,1757043035212,-400.0,0.00024657,2]
[383617420,1757043035222,-400.0,0.00024657,2]
[383617421,1757043035232,-400.0,0.00024657,2]
[383617422,1757043035242,-400.0,0.00024657,2]
[383617423,1757043035252,-400.0,0.00024657,2]
[383617424,1757043035262,-400.0,0.00024657,2]
[383617425,1757043035272,-400.0,0.00024657,2]
[383617426,1757043035281,-400.0,0.00024657,2]
[383617427,1757043035291,-400.0,0.00024657,2]
[383617428,1757043035302,-400.0,0.00024657,2]
[383617429,1757043035312,-525.52925973,0.00024657,2]
[383617430,1757043035321,-400.0,0.00024657,2]
[383617431,1757043035331,-500.0,0.00024657,2]
[383617432,1757043035341,-401.18490535,0.00024657,2]
[383617433,1757043035351,-400.0,0.00024657,2]
[383617434,1757043035362,-400.0,0.00024657,2]
[383617435,1757043035371,-400.0,0.00024657,2]
[383617436,1757043035381,-400.0,0.00024657,2]
[383617437,1757043035391,-400.0,0.00024657,2]
[383617438,1757043035401,-400.0,0.00024657,2]
[383617439,1757043035414,-400.0,0.00024657,2]
[383617440,1757043035424,-400.0,0.00024657,2]
[383617441,1757043035434,-410.61774574,0.00024657,2]
[383617442,1757043035444,-284.74646303,0.00024657,2]
[383617443,1757043035456,-2724.74,0.00024658,2]
[383617444,1757043035468,-223.05085,0.00024658,2]
[383617445,1757043035479,-223.05085,0.00024658,2]
[383617446,1757043035489,-223.05085,0.00024658,2]
[383617447,1757043035499,-223.05085,0.00024658,2]
[383617448,1757043035508,-223.05085,0.00024658,2]
[383617449,1757043035518,-223.05085,0.00024658,2]
[383617450,1757043035527,-223.05085,0.00024658,2]
[383617451,1757043035537,-223.05085,0.00024658,2]
[383617452,1757043035549,-223.05085,0.00024658,2]
[383617453,1757043035558,-223.05085,0.00024658,2]
[383617454,1757043035568,-223.05085,0.00024658,2]
[383617455,1757043035578,-223.05085,0.00024658,2]
[383617456,1757043035588,-223.05085,0.00024658,2]
[383617457,1757043035597,-223.05085,0.00024658,2]
[383617458,1757043035607,-223.05085,0.00024658,2]
[383617459,1757043035616,-223.05085,0.00024658,2]
[383617460,1757043035625,-223.05085,0.00024658,2]
[383617461,1757043035635,-223.05085,0.00024658,2]
[383617462,1757043035645,-223.05085,0.00024658,2]
[383617463,1757043035654,-223.050853,0.00024658,2]
[383617464,1757043035665,-151.0,0.00024658,7]
[383617465,1757043035673,-167.060019,0.00024658,7]
[383617466,1757043035681,-200.282308,0.00024658,7]
[383617467,1757043035690,-204.357159,0.00024658,7]
[383617468,1757043035699,-203.021781,0.00024658,7]
[383617469,1757043035707,-291.89785036,0.00024658,14]
[383617470,1757043035716,-336.9,0.00024679,2]
[383617471,1757043035725,-232.3197921,0.00024722,14]
[383617472,1757043035734,-150.0,0.00024722,14]
[383617473,1757043035743,-150.0,0.00024722,14]
[383617474,1757043035751,-159.34035136,0.00024722,14]
[383617475,1757043035759,-500.0,0.00024722,14]
[383617476,1757043035767,-454.52543348,0.00024722,14]
[383617477,1757043035775,-500.0,0.00024722,14]
[383617478,1757043035784,-150.0,0.00024722,14]
[383617479,1757043035793,-150.0,0.00024722,14]
[383617480,1757043035802,-239.41851924,0.00024722,14]
[383617481,1757043035810,-150.0,0.00024722,14]
[383617482,1757043035820,-150.0,0.00024722,14]
[383617483,1757043035828,-500.0,0.00024722,14]
[383617484,1757043035837,-154.17873256,0.00024722,14]
[383617485,1757043035845,-500.0,0.00024722,14]
[383617486,1757043035854,-500.0,0.00024722,14]
[383617487,1757043035862,-500.0,0.00024722,14]
[383617488,1757043035872,-150.0,0.00024722,2]
[383617489,1757043035880,-490.0,0.00024722,14]
[383617490,1757043035889,-500.0,0.00024722,14]
[383617491,1757043035898,-495.23,0.00024764,2]
[383617492,1757043035907,-1198.72267,0.0002478,2]
[383617493,1757043035916,-449.83528628,0.000248,2]
[383617494,1757043035925,-900.0,0.000248,9]
[383617495,1757043035934,-299.0,0.0002485,2]
[383617496,1757043035943,-2500.0,0.00024867,2]
[383617497,1757043035952,-2964.1048,0.00024867,2]
[383617498,1757043035960,-168.0,0.00024876,2]
[383617499,1757043035969,-1900.0,0.000249,9]
[383617500,1757043035978,-157.5,0.00024931,2]
[383617501,1757043035987,-400.0,0.00024931,2]
[383617502,1757043035996,-400.0,0.00024931,2]
[383617503,1757043036005,-400.0,0.00024931,2]
[383617504,1757043036013,-194.0868324,0.00024931,2]
[383617505,1757043036022,-400.0,0.00024931,2]
[383617506,1757043036030,-400.0,0.00024931,2]
[383617507,1757043036039,-400.0,0.00024931,2]
[383617508,1757043036047,-198.47451652,0.00024931,2]
[383617509,1757043036057,-400.0,0.00024931,2]
[383617510,1757043036065,-400.0,0.00024931,2]
[383617511,1757043036074,-400.0,0.00024931,2]
[383617512,1757043036082,-400.0,0.00024931,2]
[383617513,1757043036090,-400.0,0.00024931,2]
[383617514,1757043036097,-400.0,0.00024931,2]
[383617515,1757043036105,-484.5,0.00024931,2]
[383617516,1757043036111,-400.0,0.00024931,2]
[383617517,1757043036118,-400.0,0.00024931,2]
[383617518,1757043036125,-286.46270884,0.00024931,2]
[383617519,1757043036132,-336.0,0.00024932,7]
[383617520,1757043036139,-193.9966019,0.00024967,3]
[383617521,1757043036145,-25504.8703789,0.00024967,3]
[383617522,1757043036154,-812.0,0.00024967,2]
[383617523,1757043036164,-1175.0,0.00024967,2]
[383617524,1757043036173,-896.0,0.00024967,2]
[383617525,1757043036183,-2040.295,0.00024967,2]
[383617526,1757043036192,-4169.93,0.00024967,2]
[383617527,1757043036202,-1258.0,0.00024967,2]
[383617528,1757043036211,-252.89736718,0.00024996,14]
[383617529,1757043036220,-252.37224144,0.00024996,14]
[383617530,1757043036230,-201.83949831,0.00024996,14]
[383617531,1757043036239,-500.0,0.00024996,14]
[383617532,1757043036249,-260.59634237,0.00024996,14]
[383617533,1757043036258,-208.99442984,0.00024996,14]
[383617534,1757043036268,-150.0,0.00024996,14]
[383617535,1757043036278,-203.5249606,0.00024996,14]
[383617536,1757043036287,-500.0,0.00024996,14]
[383617537,1757043036297,-500.0,0.00024996,14]
[383617538,1757043036307,-457.28060113,0.00024996,14]
[383617539,1757043036320,-500.0,0.00024996,14]
[383617540,1757043036330,-254.99993898,0.00024996,2]
[383617541,1757043036339,-490.0,0.00024996,14]
[383617542,1757043036348,-263.17123872,0.00024996,14]
[383617543,1757043036358,-628.4,0.00025,7]
[383617544,1757043036368,-710.10932508,0.00025,2]
[383617545,1757043036377,-787.60143713,0.00025,7]
[383617546,1757043036387,-336.0,0.00025,7]
[383617547,1757043036397,-1425.0,0.00025017,2]
[383617548,1757043036406,-1425.0,0.0002502,2]
[383617549,1757043036416,-453.6028341,0.00025021,2]
[383617550,1757043036425,-1425.0,0.00025023,2]
[383617551,1757043036435,-25382.8466212,0.00025027,2]
[383617552,1757043036444,-429.32562738,0.00025035,2]
[383617553,1757043036454,-206.21655075,0.00025035,2]
[383617554,1757043036463,-5479.083,0.00025035,2]
[383617555,1757043036473,-152.53470486,0.00025037,2]
[383617556,1757043036483,-400.0,0.00025037,2]
[383617557,1757043036493,-400.0,0.00025037,2]
[383617558,1757043036502,-400.0,0.00025037,2]
[383617559,1757043036512,-402.80851068,0.00025037,2]
[383617560,1757043036523,-400.0,0.00025037,2]
[383617561,1757043036532,-400.0,0.00025037,2]
[383617562,1757043036544,-400.0,0.00025037,2]
[383617563,1757043036555,-401.65347565,0.00025037,2]
[383617564,1757043036565,-400.0,0.00025037,2]
[383617565,1757043036574,-400.0,0.00025037,2]
[383617566,1757043036584,-400.0,0.00025037,2]
[383617567,1757043036594,-402.18224847,0.00025037,2]
[383617568,1757043036603,-400.0,0.00025037,2]
[383617569,1757043036614,-403.08508678,0.00025037,2]
[383617570,1757043036623,-400.0,0.00025037,2]
[383617571,1757043036632,-400.0,0.00025037,2]
[383617572,1757043036642,-400.0,0.00025037,2]
[383617573,1757043036651,-277.82406978,0.00025037,2]
[383617574,1757043036660,-400.0,0.00025037,2]
[383617575,1757043036670,-400.0,0.00025037,2]
[383617576,1757043036679,-400.0,0.00025037,2]
[383617577,1757043036688,-400.0,0.00025037,2]
[383617578,1757043036698,-512.93135307,0.00025037,2]
[383617579,1757043036708,-511.23,0.00025037,2]
[383617580,1757043036717,-400.0,0.00025037,2]
[383617581,1757043036726,-400.0,0.00025037,2]
[383617582,1757043036736,-400.0,0.00025037,2]
[383617583,1757043036746,-400.0,0.00025037,2]
[383617584,1757043036755,-400.0,0.00025037,2]
[383617585,1757043036765,-400.0,0.00025037,2]
[383617586,1757043036774,-400.0,0.00025037,2]
[383617587,1757043036784,-400.0,0.00025037,2]
[383617588,1757043036793,-820.62,0.00025037,2]
[383617589,1757043036802,-1425.0,0.00025038,2]
[383617590,1757043036812,-1000.0,0.0002504,2]
[383617591,1757043036821,-1425.0,0.00025041,2]
[383617592,1757043036830,-1425.0,0.00025044,2]
[383617593,1757043036840,-1500.0,0.00025046,2]
[383617594,1757043036850,-1043.84200104,0.00025048,2]
[383617595,1757043036860,-1425.0,0.00025051,2]
[383617596,1757043036870,-12569.93760143,0.00025052,2]
[383617597,1757043036879,-1425.0,0.00025055,2]
[383617598,1757043036888,-1425.0,0.00025058,2]
[383617599,1757043036898,-1425.0,0.00025059,2]
[383617600,1757043036907,-25382.8466212,0.00025061,2]
[383617601,1757043036917,-469.56,0.00025062,2]
[383617602,1757043036927,-436.32,0.00025062,2]
[383617603,1757043036936,-1425.0,0.00025064,2]
[383617604,1757043036945,-150.0,0.00025066,2]
[383617605,1757043036955,-400.0,0.0002507,2]
[383617606,1757043036965,-400.0,0.0002507,2]
[383617607,1757043036974,-374.62147612,0.0002507,2]
[383617608,1757043036991,-25.37852388,0.0002507,2]
[383617609,1757043037000,-400.0,0.0002507,2]
[383617610,1757043037010,-61.4333638,0.0002507,2]
[383617611,1757043037021,-338.5666362,0.0002507,2]
[383617612,1757043037031,-400.0,0.0002507,2]
[383617613,1757043037040,-400.0,0.0002507,2]
[383617614,1757043037050,-226.48306863,0.0002507,2]
[383617615,1757043037061,-173.51693137,0.0002507,2]
[383617616,1757043037071,-377.70137401,0.0002507,2]
[383617617,1757043037121,-22.29862599,0.0002507,2]
[383617618,1757043037132,-403.13427303,0.0002507,2]
[383617619,1757043037142,-288.81325896,0.0002507,2]
[383617620,1757043037169,-111.18674104,0.0002507,2]
[383617621,1757043037179,-400.0,0.0002507,2]
[383617622,1757043037187,-63.72279668,0.0002507,2]
[383617623,1757043037199,-319.8000005,0.0002507,2]
[383617667,1757043038552,-301.74772505,0.00023333,2]
[383617669,1757043038561,-393.48976115,0.00024074,2]
[383617687,1757043039778,158.31,0.00013699,2]
[383617885,1757043276091,500.0,0.00019178,2]
[383617886,1757043310875,194.3930049,0.0002005,2]
[383617887,1757043350992,250.0,0.00015,2]
[383617888,1757043382924,1077.04501059,0.00030136,120]
[383617889,1757043392517,1909.84,0.00030137,120]
[383617891,1757043789123,257.88,0.00011301,2]
[383617893,1757043926322,68758.36,0.00030137,120]
[383617894,1757043927903,29999.99999703,0.0002,2]
[383617895,1757043951807,158.52,0.00013699,2]
[383617902,1757044232292,-1200.0,0.00021756,2]
[383617903,1757044232302,-300.0,0.00021756,2]
[383617904,1757044232311,-77.15010886,0.00021756,2]
[383617905,1757044232327,-151.84989114,0.00021756,2]
[383617906,1757044232337,-250.0,0.00021757,2]
[383617907,1757044232348,-14.31606743,0.00021757,2]
[383617915,1757044232518,-700.21965705,0.00021762,2]
[383617916,1757044232536,-5067.65283035,0.00021762,2]
[383617917,1757044232546,-151.0,0.00021771,2]
[383617919,1757044232556,-232.98107919,0.00021776,10]
[383617921,1757044232566,-152.0,0.00021898,3]
[383617923,1757044232576,-224.34242262,0.00022319,2]
[383617925,1757044232586,-409.93,0.00022603,2]
[383617927,1757044232595,-3332.57,0.00022603,2]
[383617929,1757044232605,-150.0,0.00022611,4]
[383617931,1757044232616,-217.42312929,0.00022611,4]
[383617934,1757044232626,-1934.56,0.00022887,2]
[383617936,1757044232636,-304.0,0.000229,2]
[383617938,1757044232646,-160.0,0.0002305,7]
[383617940,1757044232655,-666.0,0.00023068,3]
[383617942,1757044232665,-151.0,0.00023133,7]
[383617944,1757044232675,-151.0,0.00023133,7]
[383617946,1757044232686,-12405.59,0.00023133,7]
[383617948,1757044232695,-212.63008182,0.00023133,7]
[383617950,1757044232704,-306.91,0.00023169,2]
[383617952,1757044232715,-163.52,0.00023185,2]
[383617954,1757044232724,-160.0,0.00023219,14]
[383617956,1757044232734,-160.0,0.00023219,14]
[383617958,1757044232744,-160.0,0.00023219,14]
[383617960,1757044232754,-152.0,0.00023219,4]
[383617962,1757044232763,-3010.69135387,0.00023251,2]
[383617964,1757044232773,-1029.57,0.00023312,2]
[383617966,1757044232786,-420.0,0.00023647,2]
[383617969,1757044232797,-301.0,0.00023659,2]
[383617971,1757044232807,-273.24,0.00023726,2]
[383617973,1757044232818,-1680.0,0.00023759,2]
[383617975,1757044232828,-168.0,0.00023766,2]
[383617977,1757044232838,-168.0,0.00023818,2]
[383617979,1757044232848,-257.91778498,0.00023898,2]
[383617981,1757044232859,-168.0,0.00023916,2]
[383617983,1757044232868,-250.0,0.00023932,2]
[383617985,1757044232878,-300.0,0.00023932,2]
[383617987,1757044232888,-250.0,0.00023934,2]
[383617989,1757044232897,-168.0,0.0002398,2]
[383617991,1757044232906,-13577.3797876,0.00024,2]
[383617993,1757044232919,-954.02089114,0.00024,2]
[383617996,1757044232935,-1535.74822981,0.00024,2]
[383617999,1757044232955,-3932.85109145,0.00024,2]
[383618001,1757044232965,-328.1,0.00024066,2]
[383618003,1757044232977,-298.0,0.0002408,2]
[383618005,1757044232986,-168.0,0.00024195,2]
[383618007,1757044232995,-299.0,0.00024211,2]
[383618009,1757044233005,-3954.0,0.00024239,2]
[383618011,1757044233015,-813.25811074,0.00024306,2]
[383618013,1757044233025,-168.0,0.00024374,2]
[383618015,1757044233035,-152.0,0.0002454,5]
[383618017,1757044233045,-5000.0,0.00024557,2]
[383618019,1757044233054,-426.9525176,0.00024557,2]
[383618021,1757044233064,-151.0,0.00024557,7]
[383618023,1757044233074,-151.0,0.00024557,7]
[383618025,1757044233083,-150.41503229,0.00024557,2]
[383618027,1757044233093,-557.30571377,0.00024557,4]
[383618029,1757044233102,-813.25811074,0.00024589,2]
[383618031,1757044233112,-330.02269019,0.000246,2]
[383618034,1757044233122,-273.24,0.00024616,2]
[383618036,1757044233131,-329.97,0.00024631,2]
[383618038,1757044233140,-150.0,0.00024632,2]
[383618040,1757044233150,-810.27138044,0.00024634,2]
[383618042,1757044233160,-1032.6988182,0.00024636,2]
[383618044,1757044233169,-1255.12625597,0.00024637,2]
[383618045,1757044233178,-1477.55369374,0.00024639,2]
[383618046,1757044233187,-1699.9811315,0.0002464,2]
[383618047,1757044233196,-1922.40856927,0.00024642,2]
[383618048,1757044233206,-2144.83600704,0.00024644,2]
[383618049,1757044233223,-2367.2634448,0.00024645,2]
[383618050,1757044233232,-178.42,0.00024647,2]
[383618051,1757044233241,-437.05,0.00024647,2]
[383618052,1757044233250,-2589.69088256,0.00024647,2]
[383618053,1757044233264,-153.39632508,0.00024654,7]
[383618054,1757044233273,-666.0,0.00024656,2]
[383618055,1757044233283,-400.0,0.00024657,2]
[383618056,1757044233293,-400.0,0.00024657,2]
[383618058,1757044233303,-400.0,0.00024657,2]
[383618060,1757044233312,-400.0,0.00024657,2]
[383618062,1757044233321,-400.0,0.00024657,2]
[383618064,1757044233331,-402.96847817,0.00024657,2]
[383618066,1757044233341,-400.0,0.00024657,2]
[383618068,1757044233350,-400.0,0.00024657,2]
[383618070,1757044233359,-404.3732451,0.00024657,2]
[383618072,1757044233368,-402.24945748,0.00024657,2]
[383618074,1757044233376,-400.0,0.00024657,2]
[383618076,1757044233384,-400.0,0.00024657,2]
[383618079,1757044233393,-400.0,0.00024657,2]
[383618081,1757044233402,-400.0,0.00024657,2]
[383618083,1757044233411,-404.2490526,0.00024657,2]
[383618086,1757044233422,-400.0,0.00024657,2]
[383618088,1757044233431,-400.0,0.00024657,2]
[383618090,1757044233439,-407.3725766,0.00024657,2]
[383618092,1757044233448,-402.31999702,0.00024657,2]
[383618094,1757044233456,-400.0,0.00024657,2]
[383618096,1757044233464,-400.0,0.00024657,2]
[383618098,1757044233472,-400.0,0.00024657,2]
[383618100,1757044233482,-400.0,0.00024657,2]
[383618101,1757044233490,-404.08749194,0.00024657,2]
[383618102,1757044233498,-400.0,0.00024657,2]
[383618103,1757044233507,-400.0,0.00024657,2]
[383618104,1757044233515,-403.74055895,0.00024657,2]
[383618105,1757044233524,-415.28986915,0.00024657,2]
[383618106,1757044233532,-400.0,0.00024657,2]
[383618107,1757044233540,-400.0,0.00024657,2]
[383618108,1757044233547,-400.0,0.00024657,2]
[383618109,1757044233556,-400.0,0.00024657,2]
[383618110,1757044233566,-400.0,0.00024657,2]
[383618111,1757044233573,-403.48601585,0.00024657,2]
[383618112,1757044233582,-400.0,0.00024657,2]
[383618113,1757044233589,-400.0,0.00024657,2]
[383618114,1757044233598,-405.40608866,0.00024657,2]
[383618115,1757044233605,-400.0,0.00024657,2]
[383618116,1757044233614,-400.0,0.00024657,2]
[383618117,1757044233621,-400.0,0.00024657,2]
[383618118,1757044233628,-400.0,0.00024657,2]
[383618119,1757044233636,-400.0,0.00024657,2]
[383618120,1757044233643,-400.0,0.00024657,2]
[383618121,1757044233652,-400.0,0.00024657,2]
[383618122,1757044233661,-400.0,0.00024657,2]
[383618123,1757044233671,-400.0,0.00024657,2]
[383618124,1757044233681,-400.0,0.00024657,2]
[383618125,1757044233691,-400.0,0.00024657,2]
[383618126,1757044233701,-400.0,0.00024657,2]
[383618127,1757044233711,-400.0,0.00024657,2]
[383618128,1757044233721,-402.63845154,0.00024657,2]
[383618129,1757044233733,-400.0,0.00024657,2]
[383618130,1757044233743,-400.0,0.00024657,2]
[383618131,1757044233753,-400.0,0.00024657,2]
[383618132,1757044233763,-400.0,0.00024657,2]
[383618133,1757044233772,-400.0,0.00024657,2]
[383618134,1757044233783,-400.0,0.00024657,2]
[383618135,1757044233792,-400.0,0.00024657,2]
[383618136,1757044233802,-400.0,0.00024657,2]
[383618137,1757044233812,-400.0,0.00024657,2]
[383618138,1757044233822,-403.15993573,0.00024657,2]
[383618139,1757044233832,-400.0,0.00024657,2]
[383618140,1757044233841,-400.0,0.00024657,2]
[383618141,1757044233851,-400.0,0.00024657,2]
[383618142,1757044233860,-400.0,0.00024657,2]
[383618143,1757044233871,-400.0,0.00024657,2]
[383618144,1757044233882,-390.23397863,0.00024657,2]
[383618145,1757044233892,-400.0,0.00024657,2]
[383618146,1757044233901,-400.0,0.00024657,2]
[383618147,1757044233911,-400.0,0.00024657,2]
[383618148,1757044233921,-400.0,0.00024657,2]
[383618149,1757044233935,-400.0,0.00024657,2]
[383618150,1757044233947,-400.0,0.00024657,2]
[383618151,1757044233957,-402.23675185,0.00024657,2]
[383618152,1757044233967,-400.0,0.00024657,2]
[383618153,1757044233978,-400.0,0.00024657,2]
[383618154,1757044233989,-400.0,0.00024657,2]
[383618155,1757044234000,-402.48579627,0.00024657,2]
[383618156,1757044234010,-400.0,0.00024657,2]
[383618157,1757044234022,-400.0,0.00024657,2]
[383618158,1757044234032,-400.0,0.00024657,2]
[383618159,1757044234042,-400.0,0.00024657,2]
[383618160,1757044234052,-400.0,0.00024657,2]
[383618161,1757044234062,-404.73491739,0.00024657,2]
[383618162,1757044234071,-400.0,0.00024657,2]
[383618163,1757044234081,-400.0,0.00024657,2]
[383618164,1757044234091,-400.0,0.00024657,2]
[383618165,1757044234102,-403.62970828,0.00024657,2]
[383618166,1757044234113,-400.0,0.00024657,2]
[383618167,1757044234122,-400.0,0.00024657,2]
[383618168,1757044234132,-405.94137465,0.00024657,2]
[383618169,1757044234142,-400.0,0.00024657,2]
[383618170,1757044234152,-400.0,0.00024657,2]
[383618171,1757044234162,-400.0,0.00024657,2]
[383618172,1757044234172,-400.0,0.00024657,2]
[383618173,1757044234182,-400.0,0.00024657,2]
[383618174,1757044234191,-400.0,0.00024657,2]
[383618175,1757044234201,-400.0,0.00024657,2]
[383618176,1757044234211,-400.0,0.00024657,2]
[383618177,1757044234220,-400.0,0.00024657,2]
[383618178,1757044234230,-400.0,0.00024657,2]
[383618179,1757044234240,-400.0,0.00024657,2]
[383618180,1757044234250,-400.0,0.00024657,2]
[383618181,1757044234260,-400.0,0.00024657,2]
[383618182,1757044234270,-400.0,0.00024657,2]
[383618183,1757044234281,-400.0,0.00024657,2]
[383618184,1757044234291,-400.0,0.00024657,2]
[383618185,1757044234301,-400.0,0.00024657,2]
[383618186,1757044234310,-401.74805658,0.00024657,2]
[383618187,1757044234320,-402.3450358,0.00024657,2]
[383618188,1757044234329,-405.49876391,0.00024657,2]
[383618189,1757044234339,-400.0,0.00024657,2]
[383618190,1757044234348,-405.59699684,0.00024657,2]
[383618191,1757044234358,-500.0,0.00024657,2]
[383618192,1757044234368,-400.0,0.00024657,2]
[383618193,1757044234378,-400.0,0.00024657,2]
[383618194,1757044234389,-400.0,0.00024657,2]
[383618195,1757044234399,-400.0,0.00024657,2]
[383618196,1757044234409,-400.0,0.00024657,2]
[383618197,1757044234419,-400.0,0.00024657,2]
[383618198,1757044234428,-400.0,0.00024657,2]
[383618199,1757044234438,-400.0,0.00024657,2]
[383618200,1757044234447,-400.0,0.00024657,2]
[383618201,1757044234457,-403.83451367,0.00024657,2]
[383618202,1757044234467,-400.0,0.00024657,2]
[383618203,1757044234478,-403.77235159,0.00024657,2]
[383618204,1757044234488,-400.0,0.00024657,2]